[Event "Titled Tuesday Blitz May 03 Late 2022"]
[White "Janaszak, Dawid"]
[Black "Semenenko, Dmytry"]
[WhiteFideId "1119206"]
[BlackFideId "14118645"]
[WhiteElo "2199"]
[BlackElo "2113"]
[Result "1-0"]
[Round "01"]
[TimeControl "180+1"]
[Date "2022.05.03"]
[WhiteClock "0:01:13"]
[BlackClock "0:00:10"]

1. e4 {[%clk 0:03:00]}  Nf6 {[%clk 0:02:59]} 2. e5 {[%clk 0:02:57]}  Nd5 {[%clk 0:02:59]} 3. d4 {[%clk 0:02:57]}  d6 {[%clk 0:02:59]} 4. Nf3 {[%clk 0:02:57]}  Bg4 {[%clk 0:02:59]} 5. Be2 {[%clk 0:02:51]}  c6 {[%clk 0:02:59]} 6. O-O {[%clk 0:02:43]}  Bxf3 {[%clk 0:02:59]} 7. Bxf3 {[%clk 0:02:42]}  dxe5 {[%clk 0:02:59]} 8. dxe5 {[%clk 0:02:43]}  e6 {[%clk 0:03:00]} 9. c4 {[%clk 0:02:42]}  Ne7 {[%clk 0:02:59]} 10. Qe2 {[%clk 0:02:38]}  Nd7 {[%clk 0:02:57]} 11. Bf4 {[%clk 0:02:32]}  Ng6 {[%clk 0:02:57]} 12. Bg3 {[%clk 0:02:33]}  Qc7 {[%clk 0:02:51]} 13. Re1 {[%clk 0:02:31]}  Be7 {[%clk 0:02:46]} 14. Nc3 {[%clk 0:02:30]}  O-O {[%clk 0:02:45]} 15. Be4 {[%clk 0:02:24]}  Rfd8 {[%clk 0:02:30]} 16. Qh5 {[%clk 0:02:23]}  Nc5 {[%clk 0:02:21]} 17. Bc2 {[%clk 0:02:21]}  Nd3 {[%clk 0:02:18]} 18. Bxd3 {[%clk 0:02:18]}  Rxd3 {[%clk 0:02:18]} 19. Ne4 {[%clk 0:02:18]}  Bb4 {[%clk 0:02:00]} 20. Rf1 {[%clk 0:02:10]}  Rd4 {[%clk 0:01:48]} 21. Ng5 {[%clk 0:02:02]}  Nf8 {[%clk 0:01:37]} 22. b3 {[%clk 0:02:00]}  h6 {[%clk 0:01:32]} 23. Nf3 {[%clk 0:01:59]}  Rd3 {[%clk 0:01:20]} 24. Qg4 {[%clk 0:01:53]}  Rad8 {[%clk 0:01:16]} 25. h4 {[%clk 0:01:53]}  Ng6 {[%clk 0:01:06]} 26. h5 {[%clk 0:01:52]}  Ne7 {[%clk 0:01:06]} 27. Bh4 {[%clk 0:01:46]}  R8d7 {[%clk 0:00:54]} 28. a3 {[%clk 0:01:41]}  Bc3 {[%clk 0:00:53]} 29. Rab1 {[%clk 0:01:41]}  Bxe5 {[%clk 0:00:48]} 30. Bxe7 {[%clk 0:01:39]}  Rxe7 {[%clk 0:00:45]} 31. Qe4 {[%clk 0:01:39]}  Rxf3 {[%clk 0:00:31]} 32. Qxf3 {[%clk 0:01:40]}  Rd7 {[%clk 0:00:31]} 33. Rfd1 {[%clk 0:01:39]}  Rd4 {[%clk 0:00:29]} 34. Rxd4 {[%clk 0:01:31]}  Bxd4 {[%clk 0:00:29]} 35. Rd1 {[%clk 0:01:30]}  e5 {[%clk 0:00:29]} 36. b4 {[%clk 0:01:27]}  Qe7 {[%clk 0:00:28]} 37. Qe4 {[%clk 0:01:22]}  Qg5 {[%clk 0:00:26]} 38. Qf3 {[%clk 0:01:17]}  f5 {[%clk 0:00:25]} 39. g3 {[%clk 0:01:13]}  e4 {[%clk 0:00:24]} 40. Qf4 {[%clk 0:01:13]}  Qxf4 {[%clk 0:00:17]} 41. gxf4 {[%clk 0:01:14]}  Bf6 {[%clk 0:00:17]} 42. Rd7 {[%clk 0:01:13]}  b6 {[%clk 0:00:11]} 43. Rxa7 {[%clk 0:01:12]}  Bb2 {[%clk 0:00:11]} 44. a4 {[%clk 0:01:12]}  c5 {[%clk 0:00:12]} 45. bxc5 {[%clk 0:01:11]}  bxc5 {[%clk 0:00:12]} 46. a5 {[%clk 0:01:12]}  Bd4 {[%clk 0:00:11]} 47. a6 {[%clk 0:01:12]}  e3 {[%clk 0:00:10]} 48. fxe3 {[%clk 0:01:12]}  Bxe3+ {[%clk 0:00:10]} 49. Kg2 {[%clk 0:01:13]}  Bxf4 {[%clk 0:00:10]} 50. Rb7 {[%clk 0:01:13]} 1-0


[Site "https://www.chess.com"]

[Event "Titled Tuesday Blitz May 03 Late 2022"]
[White "Jones, Gawain C B"]
[Black "Jegorovas, Aleksandras"]
[WhiteFideId "409561"]
[BlackFideId "12801950"]
[WhiteElo "2657"]
[BlackElo "2247"]
[Result "1-0"]
[Round "01"]
[TimeControl "180+1"]
[Date "2022.05.03"]
[WhiteClock "0:00:52"]
[BlackClock "0:00:08"]

1. Nf3 {[%clk 0:03:00]}  d5 {[%clk 0:02:54]} 2. g3 {[%clk 0:03:00]}  Nd7 {[%clk 0:02:46]} 3. d4 {[%clk 0:02:56]}  Nb6 {[%clk 0:02:40]} 4. Bg2 {[%clk 0:02:56]}  Bf5 {[%clk 0:02:39]} 5. a4 {[%clk 0:02:55]}  a5 {[%clk 0:02:37]} 6. O-O {[%clk 0:02:54]}  e6 {[%clk 0:02:36]} 7. b3 {[%clk 0:02:42]}  Nf6 {[%clk 0:02:31]} 8. Nbd2 {[%clk 0:02:40]}  h6 {[%clk 0:02:29]} 9. c4 {[%clk 0:02:39]}  Bb4 {[%clk 0:02:28]} 10. Ba3 {[%clk 0:02:36]}  O-O {[%clk 0:02:22]} 11. Bxb4 {[%clk 0:02:32]}  axb4 {[%clk 0:02:21]} 12. Ne5 {[%clk 0:02:30]}  c6 {[%clk 0:02:06]} 13. Re1 {[%clk 0:02:29]}  Nbd7 {[%clk 0:02:00]} 14. e4 {[%clk 0:02:20]}  dxe4 {[%clk 0:01:59]} 15. Nxe4 {[%clk 0:02:18]}  Nxe5 {[%clk 0:01:58]} 16. Nxf6+ {[%clk 0:02:15]}  Qxf6 {[%clk 0:01:55]} 17. dxe5 {[%clk 0:02:16]}  Qe7 {[%clk 0:01:51]} 18. Qd6 {[%clk 0:02:16]}  Qxd6 {[%clk 0:01:48]} 19. exd6 {[%clk 0:02:16]}  Bc2 {[%clk 0:01:40]} 20. Re3 {[%clk 0:02:15]}  Rfd8 {[%clk 0:01:38]} 21. c5 {[%clk 0:02:15]}  Ra5 {[%clk 0:01:37]} 22. Rc1 {[%clk 0:02:14]}  Rxc5 {[%clk 0:01:23]} 23. Be4 {[%clk 0:02:13]}  Bxe4 {[%clk 0:01:19]} 24. Rxc5 {[%clk 0:02:14]}  Bd5 {[%clk 0:01:19]} 25. Ra5 {[%clk 0:02:07]}  Rxd6 {[%clk 0:01:19]} 26. Ra8+ {[%clk 0:02:05]}  Kh7 {[%clk 0:01:18]} 27. Rc8 {[%clk 0:02:00]}  Kg6 {[%clk 0:01:13]} 28. Rc7 {[%clk 0:01:58]}  c5 {[%clk 0:00:55]} 29. Rxc5 {[%clk 0:01:54]}  Bc6 {[%clk 0:00:55]} 30. Kf1 {[%clk 0:01:49]}  f5 {[%clk 0:00:47]} 31. Rc4 {[%clk 0:01:43]}  Kf6 {[%clk 0:00:38]} 32. Rxb4 {[%clk 0:01:43]}  e5 {[%clk 0:00:38]} 33. Ke2 {[%clk 0:01:41]}  g5 {[%clk 0:00:37]} 34. Rd3 {[%clk 0:01:39]}  Re6 {[%clk 0:00:33]} 35. a5 {[%clk 0:01:32]}  e4 {[%clk 0:00:33]} 36. Rd8 {[%clk 0:01:28]}  f4 {[%clk 0:00:32]} 37. gxf4 {[%clk 0:01:26]}  gxf4 {[%clk 0:00:31]} 38. Rb6 {[%clk 0:01:25]}  e3 {[%clk 0:00:26]} 39. f3 {[%clk 0:01:22]}  Kf5 {[%clk 0:00:21]} 40. b4 {[%clk 0:01:18]}  Rg6 {[%clk 0:00:20]} 41. Kf1 {[%clk 0:00:54]}  Bxf3 {[%clk 0:00:20]} 42. Rf8+ {[%clk 0:00:52]}  Kg5 {[%clk 0:00:10]} 43. Rxg6+ {[%clk 0:00:51]}  Kxg6 {[%clk 0:00:10]} 44. Rxf4 {[%clk 0:00:52]}  Bc6 {[%clk 0:00:08]} 45. Ke2 {[%clk 0:00:52]} 1-0


[Site "https://www.chess.com"]

[Event "Titled Tuesday Blitz May 03 Late 2022"]
[White "Kate1606"]
[Black "Djokic, Mihailo"]
[BlackFideId "976440"]
[WhiteElo "2125"]
[BlackElo "2202"]
[Result "0-1"]
[Round "01"]
[TimeControl "180+1"]
[Date "2022.05.03"]
[WhiteClock "0:00:06"]
[BlackClock "0:01:16"]

1. e4 {[%clk 0:02:10]}  c5 {[%clk 0:02:58]} 2. a3 {[%clk 0:02:09]}  Nc6 {[%clk 0:02:56]} 3. b4 {[%clk 0:02:08]}  cxb4 {[%clk 0:02:56]} 4. axb4 {[%clk 0:02:08]}  Nxb4 {[%clk 0:02:56]} 5. d4 {[%clk 0:02:06]}  d5 {[%clk 0:02:55]} 6. c3 {[%clk 0:02:06]}  Nc6 {[%clk 0:02:55]} 7. exd5 {[%clk 0:02:05]}  Qxd5 {[%clk 0:02:56]} 8. Na3 {[%clk 0:02:05]}  Bf5 {[%clk 0:02:55]} 9. Nb5 {[%clk 0:01:46]}  Qd7 {[%clk 0:02:45]} 10. Bf4 {[%clk 0:01:42]}  Rc8 {[%clk 0:02:36]} 11. d5 {[%clk 0:01:41]}  Nd8 {[%clk 0:02:29]} 12. Nf3 {[%clk 0:01:26]}  f6 {[%clk 0:02:11]} 13. Nxa7 {[%clk 0:01:22]}  Rc5 {[%clk 0:02:09]} 14. c4 {[%clk 0:01:17]}  e5 {[%clk 0:02:03]} 15. dxe6 {[%clk 0:01:06]}  Nxe6 {[%clk 0:02:00]} 16. Qxd7+ {[%clk 0:01:00]}  Kxd7 {[%clk 0:01:59]} 17. Rd1+ {[%clk 0:01:00]}  Ke8 {[%clk 0:01:59]} 18. Be3 {[%clk 0:00:48]}  Ra5 {[%clk 0:01:56]} 19. Nb5 {[%clk 0:00:42]}  Bb4+ {[%clk 0:01:55]} 20. Nd2 {[%clk 0:00:38]}  Ne7 {[%clk 0:01:51]} 21. Be2 {[%clk 0:00:32]}  Kf7 {[%clk 0:01:44]} 22. O-O {[%clk 0:00:30]}  Rd8 {[%clk 0:01:44]} 23. Nb3 {[%clk 0:00:29]}  Rxd1 {[%clk 0:01:43]} 24. Rxd1 {[%clk 0:00:29]}  Ra2 {[%clk 0:01:43]} 25. N3d4 {[%clk 0:00:27]}  Nxd4 {[%clk 0:01:33]} 26. Nxd4 {[%clk 0:00:26]}  Bd7 {[%clk 0:01:27]} 27. Bf3 {[%clk 0:00:25]}  b6 {[%clk 0:01:25]} 28. Rb1 {[%clk 0:00:18]}  Bc5 {[%clk 0:01:23]} 29. g3 {[%clk 0:00:16]}  Ng6 {[%clk 0:01:19]} 30. Kg2 {[%clk 0:00:13]}  Ne5 {[%clk 0:01:19]} 31. Nb5 {[%clk 0:00:10]}  Bxe3 {[%clk 0:01:17]} 32. Bd5+ {[%clk 0:00:06]}  Kg6 {[%clk 0:01:16]} 0-1


[Site "https://www.chess.com"]

[Event "Titled Tuesday Blitz May 03 Late 2022"]
[White "Kholin, Aleksandr"]
[Black "Wagner, Dennis"]
[WhiteFideId "14179385"]
[BlackFideId "24650684"]
[WhiteElo "2450"]
[BlackElo "2355"]
[Result "1-0"]
[Round "01"]
[TimeControl "180+1"]
[Date "2022.05.03"]
[WhiteClock "0:00:17"]
[BlackClock "0:00:12"]

1. d4 {[%clk 0:02:58]}  Nf6 {[%clk 0:02:59]} 2. c4 {[%clk 0:02:50]}  e6 {[%clk 0:02:59]} 3. Nf3 {[%clk 0:02:50]}  d5 {[%clk 0:03:00]} 4. Nc3 {[%clk 0:02:50]}  Be7 {[%clk 0:03:00]} 5. cxd5 {[%clk 0:02:49]}  exd5 {[%clk 0:03:00]} 6. Bg5 {[%clk 0:02:49]}  c6 {[%clk 0:03:00]} 7. Qc2 {[%clk 0:02:49]}  g6 {[%clk 0:02:59]} 8. e3 {[%clk 0:02:44]}  Bf5 {[%clk 0:02:59]} 9. Bd3 {[%clk 0:02:43]}  Bxd3 {[%clk 0:03:00]} 10. Qxd3 {[%clk 0:02:44]}  O-O {[%clk 0:02:58]} 11. O-O {[%clk 0:02:44]}  Nbd7 {[%clk 0:02:59]} 12. Rab1 {[%clk 0:02:43]}  a5 {[%clk 0:02:58]} 13. a3 {[%clk 0:02:42]}  Re8 {[%clk 0:02:58]} 14. Qc2 {[%clk 0:02:42]}  Ne4 {[%clk 0:02:51]} 15. Nxe4 {[%clk 0:02:39]}  dxe4 {[%clk 0:02:52]} 16. Bxe7 {[%clk 0:02:38]}  Qxe7 {[%clk 0:02:52]} 17. Nd2 {[%clk 0:02:38]}  a4 {[%clk 0:02:42]} 18. Nc4 {[%clk 0:02:30]}  h5 {[%clk 0:02:42]} 19. Rfd1 {[%clk 0:02:05]}  h4 {[%clk 0:02:39]} 20. h3 {[%clk 0:02:05]}  Ra6 {[%clk 0:02:34]} 21. Rbc1 {[%clk 0:01:57]}  Qe6 {[%clk 0:01:59]} 22. Qc3 {[%clk 0:01:44]}  Qd5 {[%clk 0:01:58]} 23. Rc2 {[%clk 0:01:40]}  Kh7 {[%clk 0:01:51]} 24. Rdc1 {[%clk 0:01:38]}  g5 {[%clk 0:01:49]} 25. Nd2 {[%clk 0:01:37]}  Nf6 {[%clk 0:01:41]} 26. Qc4 {[%clk 0:01:36]}  Re7 {[%clk 0:01:23]} 27. Qxd5 {[%clk 0:01:35]}  Nxd5 {[%clk 0:01:24]} 28. Nc4 {[%clk 0:01:33]}  f6 {[%clk 0:01:18]} 29. Nd6 {[%clk 0:01:32]}  Kg6 {[%clk 0:01:15]} 30. Kf1 {[%clk 0:01:29]}  f5 {[%clk 0:01:02]} 31. Nc4 {[%clk 0:01:27]}  Kf6 {[%clk 0:01:01]} 32. Ne5 {[%clk 0:01:26]}  Rb6 {[%clk 0:00:55]} 33. Nc4 {[%clk 0:01:24]}  Rb3 {[%clk 0:00:51]} 34. Na5 {[%clk 0:01:20]}  Rb5 {[%clk 0:00:50]} 35. Nc4 {[%clk 0:01:19]}  Ke6 {[%clk 0:00:51]} 36. Ke2 {[%clk 0:01:19]}  Re8 {[%clk 0:00:47]} 37. Rg1 {[%clk 0:01:14]}  Rh8 {[%clk 0:00:46]} 38. Rh1 {[%clk 0:01:13]}  Rg8 {[%clk 0:00:45]} 39. Ne5 {[%clk 0:01:05]}  f4 {[%clk 0:00:42]} 40. Nc4 {[%clk 0:00:51]}  Rb3 {[%clk 0:00:40]} 41. Nd2 {[%clk 0:00:51]}  fxe3 {[%clk 0:00:30]} 42. Nxb3 {[%clk 0:00:48]}  axb3 {[%clk 0:00:31]} 43. Rcc1 {[%clk 0:00:46]}  exf2 {[%clk 0:00:31]} 44. Kxf2 {[%clk 0:00:47]}  Rf8+ {[%clk 0:00:31]} 45. Ke1 {[%clk 0:00:42]}  Ne3 {[%clk 0:00:27]} 46. Rg1 {[%clk 0:00:38]}  Kd5 {[%clk 0:00:24]} 47. Rc3 {[%clk 0:00:38]}  Nc2+ {[%clk 0:00:22]} 48. Kd1 {[%clk 0:00:37]}  Nxd4 {[%clk 0:00:22]} 49. g3 {[%clk 0:00:33]}  Rf2 {[%clk 0:00:13]} 50. gxh4 {[%clk 0:00:31]}  gxh4 {[%clk 0:00:14]} 51. Rg5+ {[%clk 0:00:31]}  Kd6 {[%clk 0:00:14]} 52. Rg6+ {[%clk 0:00:30]}  Ke5 {[%clk 0:00:14]} 53. Rg5+ {[%clk 0:00:30]}  Kf4 {[%clk 0:00:11]} 54. Rg4+ {[%clk 0:00:30]}  Kf5 {[%clk 0:00:12]} 55. Rc4 {[%clk 0:00:30]}  Ne6 {[%clk 0:00:03]} 56. Rcxe4 {[%clk 0:00:28]}  Rxb2 {[%clk 0:00:03]} 57. Rb4 {[%clk 0:00:27]}  b5 {[%clk 0:00:03]} 58. Rxh4 {[%clk 0:00:26]}  Ke5 {[%clk 0:00:03]} 59. Rh5+ {[%clk 0:00:26]}  Kd6 {[%clk 0:00:03]} 60. Kc1 {[%clk 0:00:25]}  Rc2+ {[%clk 0:00:03]} 61. Kb1 {[%clk 0:00:25]}  Rc3 {[%clk 0:00:04]} 62. Kb2 {[%clk 0:00:24]}  Rg3 {[%clk 0:00:04]} 63. Rxb3 {[%clk 0:00:24]}  Rg2+ {[%clk 0:00:05]} 64. Kb1 {[%clk 0:00:24]}  Nc5 {[%clk 0:00:05]} 65. Rc3 {[%clk 0:00:22]}  Ne4 {[%clk 0:00:05]} 66. Re3 {[%clk 0:00:22]}  Nd2+ {[%clk 0:00:05]} 67. Kc1 {[%clk 0:00:22]}  Nc4 {[%clk 0:00:06]} 68. Rd3+ {[%clk 0:00:22]}  Kc7 {[%clk 0:00:06]} 69. Rh7+ {[%clk 0:00:22]}  Kb6 {[%clk 0:00:07]} 70. h4 {[%clk 0:00:22]}  Ka5 {[%clk 0:00:07]} 71. h5 {[%clk 0:00:22]}  Rh2 {[%clk 0:00:07]} 72. h6 {[%clk 0:00:22]}  c5 {[%clk 0:00:07]} 73. Rd8 {[%clk 0:00:21]}  Ka4 {[%clk 0:00:07]} 74. Rc8 {[%clk 0:00:18]}  Kb3 {[%clk 0:00:07]} 75. Kd1 {[%clk 0:00:16]}  Kxa3 {[%clk 0:00:06]} 76. Rxc5 {[%clk 0:00:16]}  Kb4 {[%clk 0:00:06]} 77. Rc8 {[%clk 0:00:15]}  Kc3 {[%clk 0:00:07]} 78. Rc6 {[%clk 0:00:16]}  b4 {[%clk 0:00:07]} 79. Rb7 {[%clk 0:00:16]}  Rxh6 {[%clk 0:00:06]} 80. Rxh6 {[%clk 0:00:15]}  b3 {[%clk 0:00:05]} 81. Rc6 {[%clk 0:00:15]}  b2 {[%clk 0:00:05]} 82. Rxc4+ {[%clk 0:00:14]}  Kxc4 {[%clk 0:00:05]} 83. Rxb2 {[%clk 0:00:15]}  Kc3 {[%clk 0:00:06]} 84. Rc2+ {[%clk 0:00:16]}  Kb3 {[%clk 0:00:07]} 85. Kd2 {[%clk 0:00:16]}  Kb4 {[%clk 0:00:08]} 86. Kd3 {[%clk 0:00:17]}  Kb3 {[%clk 0:00:08]} 87. Rc5 {[%clk 0:00:15]}  Kb4 {[%clk 0:00:09]} 88. Kd4 {[%clk 0:00:15]}  Kb3 {[%clk 0:00:10]} 89. Rc4 {[%clk 0:00:16]}  Kb2 {[%clk 0:00:11]} 90. Kd3 {[%clk 0:00:17]}  Kb1 {[%clk 0:00:12]} 91. Rc2 {[%clk 0:00:16]}  Ka1 {[%clk 0:00:12]} 92. Kc3 {[%clk 0:00:17]} 1-0


[Site "https://www.chess.com"]

[Event "Titled Tuesday Blitz May 03 Late 2022"]
[White "Koelle, Tobias"]
[Black "Karas, Marek"]
[WhiteFideId "16207378"]
[BlackFideId "14928558"]
[WhiteElo "2541"]
[BlackElo "2271"]
[Result "1-0"]
[Round "01"]
[TimeControl "180+1"]
[Date "2022.05.03"]
[WhiteClock "0:01:25"]
[BlackClock "0:00:22"]

1. Nf3 {[%clk 0:02:58]}  Nf6 {[%clk 0:02:59]} 2. e3 {[%clk 0:02:59]}  g6 {[%clk 0:02:58]} 3. d4 {[%clk 0:02:57]}  Bg7 {[%clk 0:02:58]} 4. Be2 {[%clk 0:02:58]}  O-O {[%clk 0:02:58]} 5. O-O {[%clk 0:02:58]}  d5 {[%clk 0:02:56]} 6. c4 {[%clk 0:02:57]}  c6 {[%clk 0:02:56]} 7. Nc3 {[%clk 0:02:57]}  Bg4 {[%clk 0:02:55]} 8. h3 {[%clk 0:02:51]}  Bxf3 {[%clk 0:02:55]} 9. Bxf3 {[%clk 0:02:52]}  e6 {[%clk 0:02:56]} 10. b3 {[%clk 0:02:51]}  Nbd7 {[%clk 0:02:56]} 11. Bb2 {[%clk 0:02:51]}  Re8 {[%clk 0:02:53]} 12. Qc2 {[%clk 0:02:49]}  Qe7 {[%clk 0:02:53]} 13. Rfe1 {[%clk 0:02:48]}  Rac8 {[%clk 0:02:31]} 14. a4 {[%clk 0:02:43]}  a6 {[%clk 0:02:30]} 15. Ba3 {[%clk 0:02:43]}  Qd8 {[%clk 0:02:30]} 16. Bd6 {[%clk 0:02:42]}  Bf8 {[%clk 0:02:29]} 17. Bh2 {[%clk 0:02:39]}  dxc4 {[%clk 0:02:16]} 18. bxc4 {[%clk 0:02:38]}  e5 {[%clk 0:02:16]} 19. Red1 {[%clk 0:02:34]}  Qa5 {[%clk 0:02:10]} 20. Qb3 {[%clk 0:02:21]}  exd4 {[%clk 0:01:59]} 21. exd4 {[%clk 0:02:22]}  Qb4 {[%clk 0:01:37]} 22. Rab1 {[%clk 0:02:08]}  Qxb3 {[%clk 0:01:37]} 23. Rxb3 {[%clk 0:02:09]}  b5 {[%clk 0:01:38]} 24. axb5 {[%clk 0:02:07]}  cxb5 {[%clk 0:01:25]} 25. cxb5 {[%clk 0:02:08]}  axb5 {[%clk 0:01:22]} 26. Nxb5 {[%clk 0:02:09]}  h5 {[%clk 0:01:01]} 27. Nd6 {[%clk 0:02:03]}  Bxd6 {[%clk 0:01:00]} 28. Bxd6 {[%clk 0:02:04]}  Rc2 {[%clk 0:00:56]} 29. Bg3 {[%clk 0:01:56]}  Rec8 {[%clk 0:00:45]} 30. Kh2 {[%clk 0:01:50]}  g5 {[%clk 0:00:39]} 31. Rb5 {[%clk 0:01:43]}  g4 {[%clk 0:00:32]} 32. hxg4 {[%clk 0:01:40]}  hxg4 {[%clk 0:00:33]} 33. Rg5+ {[%clk 0:01:40]}  Kf8 {[%clk 0:00:32]} 34. Bd6+ {[%clk 0:01:39]}  Ke8 {[%clk 0:00:31]} 35. Re1+ {[%clk 0:01:39]}  Kd8 {[%clk 0:00:30]} 36. Bxg4 {[%clk 0:01:27]}  Nxg4+ {[%clk 0:00:30]} 37. Rxg4 {[%clk 0:01:27]}  Nb6 {[%clk 0:00:22]} 38. Re7 {[%clk 0:01:25]} 1-0


[Site "https://www.chess.com"]

[Event "Titled Tuesday Blitz May 03 Late 2022"]
[White "Kozin, Yuri"]
[Black "Hernandez Bermudez, Ulises Eduardo"]
[WhiteFideId "4129920"]
[BlackFideId "3902510"]
[WhiteElo "2569"]
[BlackElo "2056"]
[Result "0-1"]
[Round "01"]
[TimeControl "180+1"]
[Date "2022.05.03"]
[WhiteClock "0:00:17"]
[BlackClock "0:00:57"]

1. e4 {[%clk 0:03:00]}  c5 {[%clk 0:02:56]} 2. Nf3 {[%clk 0:03:00]}  d6 {[%clk 0:02:56]} 3. d4 {[%clk 0:03:01]}  cxd4 {[%clk 0:02:56]} 4. Nxd4 {[%clk 0:03:01]}  Nf6 {[%clk 0:02:56]} 5. Nc3 {[%clk 0:03:02]}  a6 {[%clk 0:02:55]} 6. Be3 {[%clk 0:03:03]}  e5 {[%clk 0:02:54]} 7. Nf3 {[%clk 0:03:02]}  Qc7 {[%clk 0:02:51]} 8. a4 {[%clk 0:02:59]}  Be7 {[%clk 0:02:50]} 9. a5 {[%clk 0:02:59]}  Nbd7 {[%clk 0:02:49]} 10. Be2 {[%clk 0:02:59]}  O-O {[%clk 0:02:48]} 11. O-O {[%clk 0:02:59]}  b5 {[%clk 0:02:43]} 12. axb6 {[%clk 0:02:44]}  Nxb6 {[%clk 0:02:42]} 13. Bg5 {[%clk 0:02:36]}  Be6 {[%clk 0:02:35]} 14. Rxa6 {[%clk 0:02:31]}  Rxa6 {[%clk 0:02:34]} 15. Bxa6 {[%clk 0:02:32]}  Nc4 {[%clk 0:02:33]} 16. Bxc4 {[%clk 0:02:20]}  Qxc4 {[%clk 0:02:32]} 17. Nd2 {[%clk 0:02:10]}  Qb4 {[%clk 0:02:27]} 18. Qa1 {[%clk 0:01:58]}  Rb8 {[%clk 0:02:21]} 19. Nb3 {[%clk 0:01:50]}  Bxb3 {[%clk 0:02:14]} 20. cxb3 {[%clk 0:01:50]}  Qxb3 {[%clk 0:02:13]} 21. Bxf6 {[%clk 0:01:50]}  Bxf6 {[%clk 0:02:12]} 22. Nd5 {[%clk 0:01:48]}  Bd8 {[%clk 0:01:50]} 23. Qa7 {[%clk 0:01:35]}  Qb7 {[%clk 0:01:45]} 24. Qa4 {[%clk 0:01:31]}  Bb6 {[%clk 0:01:41]} 25. Ra1 {[%clk 0:01:17]}  Bd4 {[%clk 0:01:34]} 26. Rb1 {[%clk 0:01:00]}  Qb3 {[%clk 0:01:29]} 27. Qd7 {[%clk 0:00:45]}  Qd3 {[%clk 0:01:19]} 28. Rf1 {[%clk 0:00:39]}  h6 {[%clk 0:01:15]} 29. Qxd6 {[%clk 0:00:32]}  Rxb2 {[%clk 0:01:12]} 30. Qd8+ {[%clk 0:00:22]}  Kh7 {[%clk 0:01:10]} 31. Qd7 {[%clk 0:00:20]}  Bxf2+ {[%clk 0:00:58]} 32. Rxf2 {[%clk 0:00:17]}  Rb1+ {[%clk 0:00:57]} 0-1


[Site "https://www.chess.com"]

[Event "Titled Tuesday Blitz May 03 Late 2022"]
[White "Krishnan, Varun"]
[Black "Deac, Bogdan-Daniel"]
[WhiteFideId "5054508"]
[BlackFideId "1226380"]
[WhiteElo "2520"]
[BlackElo "2648"]
[Result "0-1"]
[Round "01"]
[TimeControl "180+1"]
[Date "2022.05.03"]
[WhiteClock "0:00:24"]
[BlackClock "0:01:49"]

1. e4 {[%clk 0:02:59]}  c6 {[%clk 0:02:59]} 2. d4 {[%clk 0:02:57]}  d5 {[%clk 0:03:00]} 3. exd5 {[%clk 0:02:58]}  cxd5 {[%clk 0:03:00]} 4. c4 {[%clk 0:02:58]}  Nf6 {[%clk 0:03:00]} 5. Nc3 {[%clk 0:02:58]}  Nc6 {[%clk 0:02:59]} 6. Bg5 {[%clk 0:02:57]}  e6 {[%clk 0:02:55]} 7. Nf3 {[%clk 0:02:57]}  Be7 {[%clk 0:02:55]} 8. c5 {[%clk 0:02:56]}  a6 {[%clk 0:02:51]} 9. a3 {[%clk 0:02:52]}  Ne4 {[%clk 0:02:46]} 10. Bxe7 {[%clk 0:02:51]}  Qxe7 {[%clk 0:02:47]} 11. Bd3 {[%clk 0:02:48]}  f5 {[%clk 0:02:47]} 12. O-O {[%clk 0:02:45]}  O-O {[%clk 0:02:46]} 13. Qc2 {[%clk 0:02:42]}  Bd7 {[%clk 0:02:44]} 14. b4 {[%clk 0:02:42]}  Be8 {[%clk 0:02:41]} 15. Ne5 {[%clk 0:02:36]}  Nxd4 {[%clk 0:02:39]} 16. Qb2 {[%clk 0:02:31]}  Nc6 {[%clk 0:02:34]} 17. Ne2 {[%clk 0:02:22]}  Qf6 {[%clk 0:02:27]} 18. f4 {[%clk 0:02:22]}  Bh5 {[%clk 0:02:27]} 19. Bxe4 {[%clk 0:02:03]}  fxe4 {[%clk 0:02:20]} 20. Ng3 {[%clk 0:01:59]}  Bg6 {[%clk 0:02:20]} 21. a4 {[%clk 0:01:40]}  Nxe5 {[%clk 0:02:20]} 22. fxe5 {[%clk 0:01:39]}  Qg5 {[%clk 0:02:19]} 23. Qd4 {[%clk 0:01:37]}  h5 {[%clk 0:02:16]} 24. b5 {[%clk 0:01:31]}  h4 {[%clk 0:02:16]} 25. Ne2 {[%clk 0:01:31]}  axb5 {[%clk 0:02:07]} 26. axb5 {[%clk 0:01:18]}  Rxa1 {[%clk 0:02:03]} 27. Rxa1 {[%clk 0:01:15]}  Bh5 {[%clk 0:02:02]} 28. Nc3 {[%clk 0:00:54]}  Bf3 {[%clk 0:02:00]} 29. Qf2 {[%clk 0:00:43]}  e3 {[%clk 0:01:59]} 30. Qf1 {[%clk 0:00:43]}  d4 {[%clk 0:01:53]} 31. Ne2 {[%clk 0:00:30]}  Bd5 {[%clk 0:01:51]} 32. g3 {[%clk 0:00:23]}  Rxf1+ {[%clk 0:01:50]} 33. Rxf1 {[%clk 0:00:24]}  d3 {[%clk 0:01:49]} 0-1


[Site "https://www.chess.com"]

[Event "Titled Tuesday Blitz May 03 Late 2022"]
[White "Kruckenhauser, Arthur"]
[Black "Romanchuk, Viktor"]
[WhiteFideId "1642812"]
[BlackFideId "14109271"]
[WhiteElo "2243"]
[BlackElo "2242"]
[Result "1/2-1/2"]
[Round "01"]
[TimeControl "180+1"]
[Date "2022.05.03"]
[WhiteClock "0:00:41"]
[BlackClock "0:00:23"]

1. e4 {[%clk 0:03:00]}  e6 {[%clk 0:02:59]} 2. d4 {[%clk 0:03:00]}  d5 {[%clk 0:02:59]} 3. Nd2 {[%clk 0:03:00]}  dxe4 {[%clk 0:02:59]} 4. Nxe4 {[%clk 0:03:01]}  Nd7 {[%clk 0:02:59]} 5. Nf3 {[%clk 0:02:59]}  Ngf6 {[%clk 0:02:59]} 6. Nxf6+ {[%clk 0:02:59]}  Nxf6 {[%clk 0:03:00]} 7. c3 {[%clk 0:03:00]}  c5 {[%clk 0:03:00]} 8. Bb5+ {[%clk 0:02:56]}  Bd7 {[%clk 0:02:59]} 9. Qa4 {[%clk 0:02:55]}  cxd4 {[%clk 0:02:51]} 10. Bxd7+ {[%clk 0:02:54]}  Qxd7 {[%clk 0:02:50]} 11. Qxd7+ {[%clk 0:02:53]}  Nxd7 {[%clk 0:02:51]} 12. Nxd4 {[%clk 0:02:53]}  Bc5 {[%clk 0:02:50]} 13. Be3 {[%clk 0:02:53]}  Rc8 {[%clk 0:02:48]} 14. Nc2 {[%clk 0:02:45]}  Ke7 {[%clk 0:02:40]} 15. O-O-O {[%clk 0:02:43]}  Bxe3+ {[%clk 0:02:31]} 16. Nxe3 {[%clk 0:02:44]}  Rc5 {[%clk 0:02:31]} 17. Rd2 {[%clk 0:02:40]}  Rhc8 {[%clk 0:02:28]} 18. Rhd1 {[%clk 0:02:39]}  Nf6 {[%clk 0:02:28]} 19. f3 {[%clk 0:02:32]}  R8c7 {[%clk 0:02:23]} 20. Re2 {[%clk 0:02:22]}  g6 {[%clk 0:02:06]} 21. Nf1 {[%clk 0:02:08]}  Nd5 {[%clk 0:02:03]} 22. g3 {[%clk 0:02:00]}  h5 {[%clk 0:01:48]} 23. Ne3 {[%clk 0:01:59]}  Nxe3 {[%clk 0:01:45]} 24. Rxe3 {[%clk 0:02:00]}  h4 {[%clk 0:01:36]} 25. Rd4 {[%clk 0:01:50]}  hxg3 {[%clk 0:01:35]} 26. hxg3 {[%clk 0:01:51]}  Rh5 {[%clk 0:01:35]} 27. Rd2 {[%clk 0:01:44]}  Rd7 {[%clk 0:01:21]} 28. Rxd7+ {[%clk 0:01:39]}  Kxd7 {[%clk 0:01:22]} 29. Re2 {[%clk 0:01:39]}  e5 {[%clk 0:01:20]} 30. g4 {[%clk 0:01:38]}  Rg5 {[%clk 0:01:20]} 31. Kd2 {[%clk 0:01:30]}  Kd6 {[%clk 0:01:19]} 32. Ke3 {[%clk 0:01:29]}  f5 {[%clk 0:01:18]} 33. gxf5 {[%clk 0:01:28]}  gxf5 {[%clk 0:01:19]} 34. Rh2 {[%clk 0:01:27]}  Kd5 {[%clk 0:01:10]} 35. Rd2+ {[%clk 0:01:26]}  Ke6 {[%clk 0:01:08]} 36. Rh2 {[%clk 0:01:23]}  Rg7 {[%clk 0:01:07]} 37. Rh6+ {[%clk 0:01:23]}  Kd5 {[%clk 0:01:06]} 38. Rh8 {[%clk 0:01:01]}  Rg2 {[%clk 0:01:01]} 39. Rd8+ {[%clk 0:00:52]}  Ke6 {[%clk 0:00:58]} 40. Rd2 {[%clk 0:00:51]}  Rg1 {[%clk 0:00:31]} 41. Rh2 {[%clk 0:00:45]}  Rg3 {[%clk 0:00:29]} 42. Kf2 {[%clk 0:00:41]}  Rg7 {[%clk 0:00:28]} 43. Ke3 {[%clk 0:00:42]}  Kd5 {[%clk 0:00:27]} 44. Rd2+ {[%clk 0:00:41]}  Ke6 {[%clk 0:00:26]} 45. Rh2 {[%clk 0:00:41]}  Rg3 {[%clk 0:00:24]} 46. Kf2 {[%clk 0:00:41]}  Rg7 {[%clk 0:00:23]} 47. Ke3 {[%clk 0:00:41]} 1/2-1/2


[Site "https://www.chess.com"]